{"text_format":"1","workbook":"xlsx","n_sheets":3,"sheets":["Foglio1","Foglio2","Foglio3"],"not_rendered":{"charts":0,"images":0,"macros":1,"external_links":0,"defined_names":1,"comments":0,"pivot_tables":0},"unopened":[],"bounds":{"document_bytes":16777216,"sheet_cells":100000,"rows_first":2000,"rows_last":500,"rows_between":2000,"halvings":0,"cell_chars":16384,"cell_head_chars":4096},"cells_cut":0,"cells_raw":0,"read":"whole","date_system":"1900"}

{"sheet":"Foglio1","index":0,"n_rows":34,"n_cols":8,"rows_kept":34,"cut":false,"hidden":false,"merged":[[13,5,13,7],[0,0,1,5],[2,3,2,4],[3,3,3,4],[4,0,5,7],[6,0,6,1],[7,0,7,1],[8,5,8,7],[9,5,9,7],[10,5,10,7],[11,5,11,7],[12,5,12,7],[14,5,14,7],[18,5,18,7],[19,5,19,7],[20,5,20,7],[21,5,21,7],[27,5,27,7],[15,5,15,7],[16,5,16,7],[17,5,17,7],[31,5,31,7],[22,5,22,7],[23,5,23,7],[24,5,24,7],[25,5,25,7],[26,5,26,7],[32,5,32,7],[33,1,33,2],[28,5,28,7],[29,5,29,7],[30,5,30,7]]}
["                                                     PRIMAVERA 2016      ORDINE MINIMO 30€",null,null,null,null,null,"Fil.","C/C"]
[]
["Codice Socio","COGNOME - NOME","cell","Indirizzo Mail Obbligatorio",null,null,null,"Totale Ordine €"]
[null,null,null,null,null,null,null,{"$f":"F33","v":0}]
["Per la compilazione in modo elettronico dell'ordine segui le istruzioni: Parti dalle celle gialle in testa con l'inserimento dei tuoi dati e poi inserisci nelle celle colorate in giallo il N° pezzi , automaticamente avrai il totale, salva il file c/o il tuo Pc cambiando il nome, invia lo stesso file alla solita casella offertenatale@popvi.it - Non vengono accettati fogli in formato Pdf e restituiti al mittente per il reinvio in formato excel  - Grazie -                                                                                                                                                   Per la compilazione manuale dell'ordine: Compila a mano le celle in giallo e spedisci il Modello al Circolo.                                                                          Se hai necessità di informazioni chiama la Segreteria 0444 339536 in orario di apertura."]
[]
["Luogo di consegna:   ",null,"CASTELFRANCO","PRATO","UDINE",null,"VICENZA"]
["Crociare con una X dove si desidera il ritiro dei prodotti:"]
["Codice Prodotto","Prodotto","Costo unitario e/oKg.","Totale per confezione e/o/Kg ",null,"Totale "]
["A01","Riseria Carnevale :Sacchetto da Kg.2,5 Carnaroli",6.2,6.2,null,{"$f":"E10*D10","v":0}]
[null,"Puglia - Olio \"Macchia del Barone\""]
["A02","Lattina olio extraverigne da 5 litri ",32,{"$f":"SUM(C12:C12)","v":32},null,{"$f":"E12*D12","v":0}]
["A03","Cartone 6 bottiglie olio di oliva extra vergine da 1 litro",41.5,41.5,null,{"$f":"E13*D13","v":0}]
[null,"Sicilia - Olio Extravergine Baglio Ingardia Paceco (TP)"]
["A04","Lattina da 5 litri Baglio Ingardia",40,{"$f":"SUM(C15:C15)","v":40},null,{"$f":"E15*D15","v":0}]
[null,"Sicilia - Az. Agricola  Bio  S. Tamburello Poggioreale (TP)"]
["A05","Lattina da 5 litri Extra Vergine",40,40,null,{"$f":"E17*D17","v":0}]
["A06","Cartone 6 Bott. : Nero d'Avola",39,39,null,{"$f":"E18*D18","v":0}]
[null,"Birra Ryton"]
["A07","Cartone da 12 Bottiglie da 0,75 lt mix",62,{"$f":"SUM(C20:C20)","v":62},null,{"$f":"E20*D20","v":0}]
["A08","Parmigiano Reggiano :Borgotaro  1kg (circa) 28 mesi",14.2,14.2,null,{"$f":"E21*D21","v":0}]
[null,"Az. Agricola Bellaveder - Faedo Trento"]
["A09","Lagrein Kretzer",42,{"$f":"SUM(C23:C23)","v":42},null,{"$f":"E23*D23","v":0}]
["A10","Cartone Mix : 3 Gewurztraminer + 3 Muller Thurgau",46.5,{"$f":"SUM(C24:C24)","v":46.5},null,{"$f":"E24*D24","v":0}]
["A11","Cartone Mix: 3 Teroldego Mas Picol + 3 Lagrein Dunkel ",52.5,{"$f":"SUM(C25:C25)","v":52.5},null,0]
[null,"Az. Agricola Marsura Natale Guia Valdobbiadene"]
["A12","Millesimato Docg Conf. 6 bott.",32,{"$f":"SUM(C27:C27)","v":32},null,{"$f":"E27*D27","v":0}]
["A13","MIX Le Casotte: 3Extra Dry Le Casotte + 3 Brut Le Casotte",20,{"$f":"SUM(C28:C28)","v":20},null,{"$f":"E28*D28","v":0}]
[null,"Az. Agricola Perabo' : Faedis (UD)"]
["A14","Mix Uvaggi: 3 bott. Tre Fraris Blanc + 3 bott. Tre Fraris neri",48,{"$f":"SUM(C30:C30)","v":48},null,{"$f":"E30*D30","v":0}]
["A15","MIX Bianco : 2 Friulano - 2 Sauvignon - 2 Ribolla gialla",29.5,{"$f":"SUM(C31:C31)","v":29.5},null,{"$f":"E31*D31","v":0}]
["A16","MIX Rosso : 3 Cabernet Franc + 3 Refosco dal peduncolo rosso",29.5,{"$f":"SUM(C32:C32)","v":29.5},null,0]
[null,"Tot.Generale del Modello RIPORTATO IN ALTO AUTOMATICAMENTE",null,null,null,{"$f":"SUM(F10:H32)","v":0}]
[null,"data"]

{"sheet":"Foglio2","index":1,"n_rows":0,"n_cols":0,"rows_kept":0,"cut":false,"hidden":false,"merged":[]}

{"sheet":"Foglio3","index":2,"n_rows":0,"n_cols":0,"rows_kept":0,"cut":false,"hidden":false,"merged":[]}